[Event "Gibraltar Amateurs B 2020"]
[Site "Caleta"]
[Date "2020.01.29"]
[Round "5.3"]
[White "Dumont, Andre"]
[Black "Campuzano, Franco"]
[Result "1-0"]
[ECO "B20"]
[WhiteElo "1872"]
[BlackElo "1785"]
[Annotator "NA RC"]
[PlyCount "63"]
[EventDate "2020.01.20"]
[EventType "swiss"]
[EventCountry "GGB"]
[SourceTitle "playchess.com"]
[Source "ChessBase"]
[SourceQuality "1"]
[TimeControl "6600+10"]

1. e4 {[%emt 0:00:00]} e6 {[%emt 0:01:09]} 2. b3 {[%emt 0:00:00]} c5 {[%emt 0:01:45]} 3. Bb2 {[%emt 0:00:14]} d5 {[%emt 0:00:24]} 4. exd5 {[%emt 0:02:54]} exd5 {[%emt 0:00:33]} 5. Bb5+ {[%emt 0:00:12]} Nc6 {[%emt 0:00:28]} (5... Bd7 6. Qe2+ Qe7 7. Nc3 Qxe2+ 8. Bxe2 d4 9. Nb5 Kd8 10. c3 a6 11. Na3 dxc3 12. dxc3 Nc6 {1-0 (33) Aronian,L (2752)-Van Wely,L (2647) Monte Carlo 2006}) 6. Qe2+ {[%emt 0:00:08] B20: Sicilian: Unusual White 2nd moves} Qe7 {[%emt 0:00:28]} 7. Qxe7+ {[%emt 0:01:31]} Ngxe7 {[%emt 0:00:17]} 8. Nc3 $146 {[%emt 0:02:13]} ({Predecessor:} 8. Ne2 Bf5 9. O-O Bxc2 10. Rc1 Bxb1 11. Raxb1 a6 12. Bxc6+ Nxc6 {0-1 (34) Modi,K (1938)-Jaufarally,N (1988) Hull 2018}) 8... Bf5 {[%emt 0:00:43]} 9. O-O-O {[%emt 0:00:28]} (9. Bxc6+ $1 $11 bxc6 10. O-O-O) 9... O-O-O {[%emt 0:01:47]} 10. Bxc6 {[%emt 0:03:13]} Nxc6 {[%emt 0:00:27]} 11. Kb1 {[%emt 0:00:25]} Nb4 {[%emt 0:01:40]} 12. d3 {[%emt 0:00:15]} c4 {[%emt 0:00:18]} 13. a3 $2 {[%emt 0:00:40]} (13. Nf3 {might work better.}) 13... cxd3 {[%emt 0:00:15]} 14. Rd2 {[%emt 0:03:33]} dxc2+ {[%emt 0:03:44]} 15. Ka1 {[%emt 0:00:18]} d4 {[%emt 0:00:23]} 16. Nce2 {[%emt 0:07:11]} Kb8 {[%emt 0:01:41]} 17. axb4 {[%emt 0:05:54]} Bxb4 {[%emt 0:00:25]} (17... d3 $17 18. Nf3 Rc8) 18. Rxd4 {[%emt 0:00:32]} Rxd4 {[%emt 0:01:39]} 19. Bxd4 {[%emt 0:01:06]} Re8 {[%emt 0:02:21]} 20. Kb2 {[%emt 0:02:31]} Re4 $2 {[%emt 0:05:55] [#]} (20... Bd2 $14) 21. Be3 $1 {[%emt 0:00:22]} Be7 {[%emt 0:05:46]} 22. Nf3 {[%emt 0:04:11]} Rb4 {[%emt 0:04:05]} 23. Ned4 {[%emt 0:03:36]} Bf6 {[%emt 0:00:52]} (23... Be4 {is a better defense.} 24. Bf4+ (24. Nxc2 Bf6+ 25. Ka3 Rb5 $18) 24... Kc8) 24. Ka3 {[%emt 0:00:11]} Rb6 {[%emt 0:21:32]} 25. Nxf5 {[%emt 0:00:21]} Ra6+ {[%emt 0:00:10]} 26. Kb4 {[%emt 0:00:08]} Ra2 {[%emt 0:00:17]} 27. Rc1 {[%emt 0:02:49]} a5+ {[%emt 0:06:50]} 28. Kc4 {[%emt 0:01:32]} b5+ {[%emt 0:01:10]} 29. Kxb5 {[%emt 0:00:36]} Rb2 {[%emt 0:00:51]} 30. Kc4 {[%emt 0:00:36]} a4 {[%emt 0:01:08]} 31. bxa4 {[%emt 0:00:17]} Ra2 {[%emt 0:00:06]} 32. Bd4 $18 {[%emt 0:00:39]} 1-0

[Event "Gibraltar Amateurs B 2020"]
[Site "Caleta"]
[Date "2020.01.29"]
[Round "5.4"]
[White "Nash, Damian"]
[Black "Anjali R. Sagar"]
[Result "1-0"]
[ECO "A00"]
[WhiteElo "1890"]
[BlackElo "1775"]
[Annotator "NA RC"]
[PlyCount "87"]
[EventDate "2020.01.20"]
[EventType "swiss"]
[EventCountry "GGB"]
[SourceTitle "playchess.com"]
[Source "ChessBase"]
[SourceQuality "1"]
[TimeControl "6600+10"]

1. Nc3 {[%emt 0:00:07]} d5 {[%emt 0:00:09]} 2. e4 {[%emt 0:00:14]} dxe4 {[%emt 0:00:06]} 3. Nxe4 {[%emt 0:00:01]} Bf5 {[%emt 0:00:21]} 4. Ng3 {[%emt 0:00:08]} Bg6 {[%emt 0:00:13]} 5. Nf3 {[%emt 0:01:23]} e6 {[%emt 0:00:26]} 6. d4 {[%emt 0:01:56] A00: Irregular Openings} (6. h4 h6 7. Ne5 Ne7 8. Nxg6 Nxg6 9. h5 Ne7 10. d4 Nbc6 11. c3 e5 12. Qb3 exd4 13. Bc4 Ne5 14. Qxb7 Rb8 15. Qa6 Nxc4 16. Qxc4 dxc3 17. Qxc3 Nd5 18. Qc6+ Qd7 19. Qxd7+ Kxd7 20. O-O Bd6 {½-½ (20) Pridorozhni,A (2579)-Usmanov,V (2431) Sochi 2016}) 6... Be7 {[%emt 0:02:00]} 7. h4 {[%emt 0:03:11]} h6 {[%emt 0:00:56]} 8. h5 $146 {[%emt 0:03:48]} ({Predecessor:} 8. c3 c6 9. Ne5 Bh7 10. Qh5 g6 11. Qf3 Bf6 12. Ne4 Qe7 13. Bf4 Nd7 {½-½ (32) Helmsen,F (1998)-Mewes,H (1645) Plau am See 2005}) 8... Bh7 {[%emt 0:00:06]} 9. Be3 {[%emt 0:06:36]} Nf6 {[%emt 0:00:33]} 10. Bd3 {[%emt 0:02:41]} Bxd3 {[%emt 0:00:58]} 11. Qxd3 {[%emt 0:00:10]} Nbd7 {[%emt 0:02:15]} 12. O-O-O {[%emt 0:02:36]} c6 {[%emt 0:01:19]} 13. Kb1 {[%emt 0:05:54]} Qc7 {[%emt 0:02:57]} 14. Rhe1 {[%emt 0:13:05]} O-O-O {[%emt 0:01:06]} 15. Qb3 {[%emt 0:02:38]} Ng4 {[%emt 0:05:49]} 16. c4 {[%emt 0:08:07]} c5 {[%emt 0:05:09]} 17. d5 {[%emt 0:07:48]} exd5 {[%emt 0:04:36]} 18. cxd5 {[%emt 0:05:58]} Nxe3 {[%emt 0:03:41]} 19. Rxe3 {[%emt 0:01:06]} c4 {[%emt 0:01:04]} 20. Qa4 {[%emt 0:06:28]} Bc5 {[%emt 0:13:18]} 21. Rc3 {[%emt 0:03:08]} Nb6 {[%emt 0:04:49] Double Attack} 22. Qc2 {[%emt 0:00:02]} Kb8 {[%emt 0:03:01]} 23. a3 {[%emt 0:03:53]} Rhe8 {[%emt 0:03:10]} 24. Ne4 {[%emt 0:04:24]} Bf8 {[%emt 0:05:15]} 25. d6 {[%emt 0:06:30]} Bxd6 {[%emt 0:01:54]} 26. Nxd6 {[%emt 0:00:05]} Rxd6 {[%emt 0:00:43]} 27. Rxd6 {[%emt 0:02:58]} Qxd6 {[%emt 0:00:14]} 28. Nd2 {[%emt 0:01:37]} (28. Qd2 $17 Qf6 29. Ka2) 28... Re1+ {[%emt 0:02:18]} 29. Ka2 {[%emt 0:00:20]} Qe6 {[%emt 0:01:07]} 30. Qh7 {[%emt 0:05:37]} Re2 {[%emt 0:04:04]} 31. Nb1 {[%emt 0:03:40] [#]} Na4 $1 {[%emt 0:02:43] Double Attack} 32. Qxg7 {[%emt 0:00:34]} Nxc3+ $2 {[%emt 0:04:46]} (32... Rxb2+ $19 {has better winning chances.} 33. Ka1 {[#]} Rxb1+ $1 {[%mdl 512]} 34. Kxb1 Qb6+ {[%mdl 64] Double Attack} 35. Rb3 Qxb3+ {[%mdl 64] Double Attack} 36. Kc1 Qxa3+ 37. Kc2 Qd3+ 38. Kc1 Qf1+ {[%mdl 64] Double Attack} 39. Kc2 Qxf2+ 40. Kb1 a6 41. Qf8+ Ka7) 33. Nxc3 {[%emt 0:00:04]} Re5 {[%emt 0:08:56]} 34. g4 {[%emt 0:00:48] [#]} Rg5 $1 {[%emt 0:03:52]} 35. Qf8+ {[%emt 0:00:03]} Qc8 {[%emt 0:02:21]} 36. Qd6+ {[%emt 0:01:04]} Ka8 {[%emt 0:00:33]} 37. Nd5 {[%emt 0:00:56]} Rxd5 {[%emt 0:07:15]} 38. Qxd5 {[%emt 0:00:03]} Qc7 {[%emt 0:00:57]} 39. g5 {[%emt 0:01:04]} a6 {[%emt 0:04:23]} 40. g6 {[%emt 0:00:11]} fxg6 {[%emt 0:00:42]} 41. hxg6 {[%emt 0:00:01]} c3 {[%emt 0:01:42]} 42. Qf7 {[%emt 0:00:31]} Qc5 {[%emt 0:01:28]} 43. bxc3 {[%emt 0:00:41]} Qxc3 {[%emt 0:00:18]} 44. Qe8+ {[%emt 0:00:03]} 1-0

[Event "Gibraltar Amateurs B 2020"]
[Site "Caleta"]
[Date "2020.01.29"]
[Round "5.5"]
[White "Diaz Gallego, Saul"]
[Black "Bowman, Richard L"]
[Result "1/2-1/2"]
[ECO "A40"]
[WhiteElo "1801"]
[BlackElo "1740"]
[Annotator "NA RC"]
[PlyCount "84"]
[EventDate "2020.01.20"]
[EventType "swiss"]
[EventCountry "GGB"]
[SourceTitle "playchess.com"]
[Source "ChessBase"]
[SourceQuality "1"]
[TimeControl "6600+10"]

1. d4 {[%emt 0:00:00]} c6 {[%emt 0:00:32]} 2. Bf4 {[%emt 0:00:12]} d6 {[%emt 0:00:15]} 3. e3 {[%emt 0:00:13]} Nf6 {[%emt 0:02:38]} 4. c3 {[%emt 0:01:15]} Qc7 {[%emt 0:00:31]} 5. Bc4 {[%emt 0:01:50]} e5 {[%emt 0:00:44]} 6. dxe5 {[%emt 0:01:15]} dxe5 {[%emt 0:00:06]} 7. Bg3 {[%emt 0:00:49]} h5 {[%emt 0:05:53]} 8. h3 {[%emt 0:04:49]} ({White should play} 8. Nf3 $14 Nbd7 9. Nbd2 (9. Ng5 h4 $15)) 8... Bd6 {[%emt 0:00:13]} 9. Nf3 {[%emt 0:02:13]} Bf5 {[%emt 0:03:32]} 10. Nbd2 {[%emt 0:07:48]} b5 {[%emt 0:01:51]} 11. Bb3 {[%emt 0:00:32]} Na6 {[%emt 0:00:32]} 12. Nh4 {[%emt 0:07:40]} ({White should play} 12. Bc2 $14 Bxc2 13. Qxc2) 12... Bh7 {[%emt 0:06:02]} 13. Bc2 {[%emt 0:13:43]} e4 {[%emt 0:10:22]} 14. Bxd6 {[%emt 0:11:47]} Qxd6 {[%emt 0:00:05]} 15. g3 {[%emt 0:03:19]} Nc5 {[%emt 0:01:54]} 16. O-O $2 {[%emt 0:13:16]} ({Better is} 16. a4 $15) 16... Qe6 {[%emt 0:03:39]} 17. Kh2 {[%emt 0:08:55]} Rd8 {[%emt 0:03:28]} 18. Qe2 {[%emt 0:00:58]} g5 {[%emt 0:01:33]} 19. Ng2 {[%emt 0:00:42]} Bf5 {[%emt 0:01:24]} 20. Nb3 {[%emt 0:01:50]} Nxb3 {[%emt 0:14:39]} 21. Bxb3 {[%emt 0:00:11]} Qc8 {[%emt 0:00:50]} 22. Rad1 {[%emt 0:09:16]} ({Only move:} 22. f4 $15 g4 23. h4) 22... Ke7 {[%emt 0:10:17]} (22... Bxh3 $17 23. Rxd8+ Kxd8) 23. Rxd8 {[%emt 0:01:09]} Rxd8 {[%emt 0:00:18]} 24. Rd1 {[%emt 0:00:27]} Rxd1 {[%emt 0:01:34]} 25. Qxd1 {[%emt 0:00:10]} Bxh3 {[%emt 0:00:12]} 26. Qd4 {[%emt 0:00:31]} Be6 {[%emt 0:03:51]} 27. Qxa7+ {[%emt 0:00:40]} Nd7 {[%emt 0:01:56]} 28. Bxe6 {[%emt 0:00:22]} Kxe6 {[%emt 0:00:27]} 29. Ne1 {[%emt 0:01:29]} Ne5 {[%emt 0:04:41]} 30. Qd4 {[%emt 0:03:31]} Kf5 {[%emt 0:01:38]} 31. Kg2 {[%emt 0:03:55]} Qa6 {[%emt 0:06:20]} 32. a3 {[%emt 0:01:43]} b4 {[%emt 0:00:14]} 33. Qd1 {[%emt 0:05:37]} bxa3 {[%emt 0:02:59]} 34. bxa3 {[%emt 0:00:01]} g4 {[%emt 0:01:26]} 35. Nc2 {[%emt 0:00:31] [#]} c5 $1 {[%emt 0:01:47]} 36. Qd5 {[%emt 0:02:36] [#]} Qd3 {[%emt 0:01:10]} (36... Qc4 $1 $17 {[%cal Rc4d5]} 37. Qxc4 Nxc4) 37. Nd4+ $1 {[%emt 0:00:18]} cxd4 {[%emt 0:00:14]} 38. cxd4 $11 {[%emt 0:00:02] Pin} f6 {[%emt 0:00:49]} 39. a4 {[%emt 0:00:32]} Qd1 {[%emt 0:02:36]} 40. Qb5 {[%emt 0:00:20]} Qf3+ {[%emt 0:01:07]} 41. Kg1 {[%emt 0:00:02]} Qd1+ {[%emt 0:00:25]} 42. Kg2 {[%emt 0:00:11]} Qf3+ {[%emt 0:00:16]} 1/2-1/2

[Event "Gibraltar Amateurs B 2020"]
[Site "Caleta"]
[Date "2020.01.29"]
[Round "5.6"]
[White "Martos Amiguet, Valentina"]
[Black "Johansson, Daniel"]
[Result "0-1"]
[ECO "D02"]
[WhiteElo "1745"]
[BlackElo "1859"]
[Annotator "NA RC"]
[PlyCount "104"]
[EventDate "2020.01.20"]
[EventType "swiss"]
[EventCountry "GGB"]
[SourceTitle "playchess.com"]
[Source "ChessBase"]
[SourceQuality "1"]
[TimeControl "6600+10"]

1. d4 {[%emt 0:00:00]} d5 {[%emt 0:05:41]} 2. Bf4 {[%emt 0:00:03]} e6 {[%emt 0:00:20]} 3. e3 {[%emt 0:00:15]} Bd6 {[%emt 0:00:19]} 4. Bg3 {[%emt 0:00:08]} Nf6 {[%emt 0:00:06]} 5. Nf3 {[%emt 0:01:58]} O-O {[%emt 0:00:32]} 6. Nbd2 {[%emt 0:00:10]} c5 {[%emt 0:02:51]} 7. c3 {[%emt 0:00:10]} Nc6 {[%emt 0:01:33]} 8. Bb5 {[%emt 0:00:37] D02: 1 d4 d5 2 Nf3 sidelines, including 2...Nf6 3 g3 and 2...Nf6 3 Bf4} a6 {[%emt 0:02:47]} (8... Ne7 9. Bd3 Qb6 10. Rb1 Bd7 11. Ne5 Bb5 12. c4 dxc4 13. Nexc4 Bxc4 14. Nxc4 Qb4+ 15. Kf1 Bxg3 {½-½ (42) Grachev,B (2614)-Karjakin,S (2754) Moscow 2019}) 9. Bd3 {[%emt 0:00:42]} Re8 {[%emt 0:03:55]} 10. Ne5 {[%emt 0:00:35]} Qe7 $146 {[%emt 0:05:45]} ({Predecessor:} 10... Qc7 11. f4 b5 12. Bh4 Be7 13. O-O h6 14. Kh1 Nd7 15. Qh5 Ndxe5 16. fxe5 Bxh4 17. Qxh4 {1-0 (61) Wagner,M (1563)-Werner,R (1639) Willingen 2018}) 11. O-O {[%emt 0:00:28]} Nd7 {[%emt 0:04:46]} 12. Ndf3 {[%emt 0:03:47]} Nf8 {[%emt 0:10:33]} 13. Bh4 {[%emt 0:07:58]} Qc7 {[%emt 0:12:16]} 14. Bg3 {[%emt 0:09:38]} f6 {[%emt 0:04:17]} 15. Nxc6 {[%emt 0:01:19]} Bxg3 {[%emt 0:02:45]} 16. hxg3 {[%emt 0:00:50]} Qxc6 {[%emt 0:00:14]} 17. Re1 {[%emt 0:06:48]} e5 {[%emt 0:03:29]} 18. e4 {[%emt 0:01:14]} exd4 {[%emt 0:04:18]} 19. exd5 $1 {[%emt 0:06:32]} Rxe1+ {[%emt 0:00:25]} 20. Qxe1 {[%emt 0:00:04]} Qxd5 {[%emt 0:00:23]} 21. cxd4 {[%emt 0:03:28]} Bf5 {[%emt 0:02:29]} 22. Bxf5 {[%emt 0:03:19]} Qxf5 {[%emt 0:00:08]} 23. dxc5 {[%emt 0:00:33]} Qxc5 {[%emt 0:00:12]} 24. Rc1 {[%emt 0:01:34]} Qb5 {[%emt 0:02:02]} 25. Nd4 {[%emt 0:16:23]} Qd5 {[%emt 0:06:46]} 26. Nf3 {[%emt 0:04:44]} Rd8 {[%emt 0:03:23]} 27. Qe7 {[%emt 0:03:55]} Rd7 {[%emt 0:01:09]} 28. Qe8 {[%emt 0:01:07]} Qxa2 {[%emt 0:03:45]} 29. Rc8 {[%emt 0:04:52]} Qf7 {[%emt 0:00:33]} 30. Qe4 {[%emt 0:02:07]} Rc7 {[%emt 0:05:40]} 31. Rb8 {[%emt 0:04:16]} g6 {[%emt 0:01:24]} 32. g4 {[%emt 0:06:33]} h6 {[%emt 0:01:05]} (32... Rc1+ $17 33. Ne1 Qc7) 33. Qf4 {[%emt 0:01:52]} Kg7 {[%emt 0:01:00]} 34. Nd4 {[%emt 0:00:50]} Rd7 {[%emt 0:01:50]} 35. Nf3 {[%emt 0:01:58]} Ne6 {[%emt 0:01:37]} 36. Qc1 {[%emt 0:01:51]} Rc7 {[%emt 0:03:28]} 37. Qd2 {[%emt 0:01:13]} Qd7 {[%emt 0:00:24]} 38. Qe2 {[%emt 0:02:22]} Rc1+ {[%emt 0:02:57]} 39. Ne1 {[%emt 0:01:17]} Nf4 {[%emt 0:01:47]} (39... Nd4 $19 40. Qe3 Rb1) 40. Qe4 {[%emt 0:01:18]} Nd3 {[%emt 0:03:00]} 41. Re8 $2 {[%emt 0:06:23]} (41. Rxb7 $11 Rxe1+ {[%mdl 64] [#] Double Attack} 42. Kh2 $1 {[%mdl 512]} Rxe4 43. Rxd7+ Kg8 44. Rxd3) 41... Rxe1+ {[%emt 0:02:10]} 42. Qxe1 {[%emt 0:00:10]} Nxe1 {[%emt 0:00:02]} 43. Rxe1 {[%emt 0:00:07]} Kf7 $19 {[%emt 0:00:15]} 44. f3 {[%emt 0:00:24]} Qd4+ {[%emt 0:00:04]} 45. Kf1 {[%emt 0:00:15]} Qxb2 {[%emt 0:00:04]} 46. Rd1 {[%emt 0:00:41]} b5 {[%emt 0:00:25]} 47. Re1 {[%emt 0:00:32]} b4 {[%emt 0:00:11]} 48. Re2 {[%emt 0:00:22]} Qxe2+ {[%emt 0:00:05]} 49. Kxe2 {[%emt 0:00:02]} Ke6 {[%emt 0:00:02]} 50. Kd3 {[%emt 0:00:02]} Ke5 {[%emt 0:00:03]} 51. Kc4 {[%emt 0:00:09]} a5 {[%emt 0:00:03]} 52. Kb5 {[%emt 0:00:03]} b3 {[%emt 0:00:02]} 0-1

[Event "Gibraltar Amateurs B 2020"]
[Site "Caleta"]
[Date "2020.01.29"]
[Round "5.7"]
[White "Sagar Siya"]
[Black "Marani, Luca"]
[Result "1-0"]
[ECO "C65"]
[WhiteElo "1740"]
[BlackElo "1796"]
[Annotator "NA RC"]
[PlyCount "91"]
[EventDate "2020.01.20"]
[EventType "swiss"]
[EventCountry "GGB"]
[SourceTitle "playchess.com"]
[Source "ChessBase"]
[SourceQuality "1"]
[TimeControl "6600+10"]

1. e4 {[%emt 0:00:00]} e5 {[%emt 0:21:50]} 2. Nf3 {[%emt 0:00:09]} Nc6 {[%emt 0:00:02]} 3. Bb5 {[%emt 0:00:13]} Bc5 {[%emt 0:00:06]} 4. O-O {[%emt 0:00:10]} Nf6 {[%emt 0:00:09]} 5. c3 {[%emt 0:00:23]} Nxe4 {[%emt 0:10:16]} 6. d4 {[%emt 0:00:33]} exd4 {[%emt 0:00:31]} 7. cxd4 {[%emt 0:00:13]} Bb6 {[%emt 0:02:15]} 8. Re1 {[%emt 0:01:18]} d5 {[%emt 0:00:59]} 9. Ne5 {[%emt 0:04:19]} Qd6 {[%emt 0:00:09]} 10. Bf4 {[%emt 0:12:05]} O-O {[%emt 0:05:54]} 11. Bxc6 {[%emt 0:02:26]} bxc6 {[%emt 0:00:52]} 12. f3 {[%emt 0:01:28]} Qb4 {[%emt 0:10:52]} 13. Nxc6 {[%emt 0:07:58]} Qxb2 {[%emt 0:00:36]} 14. fxe4 {[%emt 0:07:56]} Qxa1 {[%emt 0:04:18]} 15. Qd2 {[%emt 0:00:17]} Bb7 {[%emt 0:10:48]} 16. Nc3 {[%emt 0:02:47]} Qxe1+ {[%emt 0:00:10]} 17. Qxe1 {[%emt 0:00:08]} Bxc6 {[%emt 0:00:23]} 18. Nxd5 {[%emt 0:02:41]} Bxd4+ {[%emt 0:13:24]} 19. Be3 {[%emt 0:00:59]} Bxe3+ {[%emt 0:04:49]} 20. Qxe3 {[%emt 0:00:18]} Bxd5 {[%emt 0:01:36]} 21. exd5 {[%emt 0:00:10]} Rfd8 {[%emt 0:05:07]} 22. Qc5 {[%emt 0:00:38]} Rd7 {[%emt 0:00:51]} 23. h3 {[%emt 0:00:59]} h6 {[%emt 0:00:43]} 24. a4 {[%emt 0:05:38]} a5 {[%emt 0:03:14]} 25. Kf2 {[%emt 0:02:16]} Ra6 {[%emt 0:00:51]} 26. Ke3 {[%emt 0:02:50]} f5 {[%emt 0:00:48]} 27. g4 {[%emt 0:05:24]} Rad6 {[%emt 0:05:25]} 28. Qxa5 {[%emt 0:00:44]} Rxd5 {[%emt 0:00:20]} 29. Qa6 {[%emt 0:01:01]} Re7+ {[%emt 0:01:47]} 30. Kf3 {[%emt 0:01:59]} Kh7 {[%emt 0:00:32]} 31. Qc4 {[%emt 0:02:06]} fxg4+ {[%emt 0:01:41]} 32. hxg4 {[%emt 0:00:23]} Rde5 {[%emt 0:00:24]} 33. Qd3+ {[%emt 0:02:06]} g6 {[%emt 0:00:20]} 34. Qc3 {[%emt 0:01:28]} Kg8 {[%emt 0:00:36]} 35. a5 {[%emt 0:01:35]} R5e6 {[%emt 0:01:06]} 36. Qc4 {[%emt 0:01:45]} Rf7+ {[%emt 0:00:45]} 37. Kg2 {[%emt 0:00:59]} Re1 {[%emt 0:00:37]} 38. a6 {[%emt 0:01:23]} Ra1 {[%emt 0:00:05]} 39. Kg3 {[%emt 0:01:54]} g5 {[%emt 0:00:32]} 40. Qc6 {[%emt 0:01:23]} Ra3+ {[%emt 0:00:18]} 41. Kg2 {[%emt 0:00:41]} Kg7 {[%emt 0:00:01]} 42. Qc4 {[%emt 0:01:23]} Raf3 {[%emt 0:00:26]} 43. Qd4+ {[%emt 0:01:34]} Kg8 {[%emt 0:00:25]} 44. a7 {[%emt 0:01:04]} Rf8 {[%emt 0:00:15]} 45. Qd5+ {[%emt 0:00:55]} Kg7 {[%emt 0:00:11]} 46. Qxf3 {[%emt 0:00:30]} 1-0

[Event "Gibraltar Amateurs B 2020"]
[Site "Caleta"]
[Date "2020.01.29"]
[Round "5.8"]
[White "Salas Martin, Javier"]
[Black "Mircov, Nicola-Alexandar"]
[Result "0-1"]
[ECO "A77"]
[WhiteElo "1738"]
[BlackElo "1788"]
[Annotator "NA RC"]
[PlyCount "108"]
[EventDate "2020.01.20"]
[EventType "swiss"]
[EventCountry "GGB"]
[SourceTitle "playchess.com"]
[Source "ChessBase"]
[SourceQuality "1"]
[TimeControl "6600+10"]

1. d4 {[%emt 0:00:00]} c5 {[%emt 0:10:31]} 2. d5 {[%emt 0:00:10]} e6 {[%emt 0:00:12]} 3. c4 {[%emt 0:00:19]} exd5 {[%emt 0:00:04]} 4. cxd5 {[%emt 0:00:06]} a6 {[%emt 0:00:01]} 5. a4 {[%emt 0:00:27]} g6 {[%emt 0:00:05]} 6. Nc3 {[%emt 0:00:24]} d6 {[%emt 0:00:09]} 7. e4 {[%emt 0:00:32]} Bg7 {[%emt 0:03:26]} 8. Nf3 {[%emt 0:00:15]} Nf6 {[%emt 0:01:03]} 9. Be2 {[%emt 0:00:10]} O-O {[%emt 0:00:06]} 10. O-O {[%emt 0:00:07]} Re8 {[%emt 0:00:33]} 11. Nd2 {[%emt 0:00:45]} Nbd7 {[%emt 0:04:56]} 12. Re1 {[%emt 0:02:04]} Qc7 {[%emt 0:03:10]} 13. h3 {[%emt 0:03:12]} Rb8 {[%emt 0:10:01]} 14. Bf1 {[%emt 0:02:05]} Nh5 {[%emt 0:02:21]} 15. Nc4 {[%emt 0:02:07]} Ne5 {[%emt 0:12:52]} 16. Na3 {[%emt 0:02:33]} c4 {[%emt 0:02:07]} 17. Be3 {[%emt 0:04:06]} Kh8 {[%emt 0:18:36]} 18. g4 {[%emt 0:11:44]} Nf6 {[%emt 0:02:50]} 19. f4 {[%emt 0:05:30]} Nd3 {[%emt 0:02:09]} 20. Bxd3 {[%emt 0:00:52]} cxd3 {[%emt 0:00:07]} 21. Qxd3 {[%emt 0:00:06]} h5 {[%emt 0:00:41]} 22. g5 {[%emt 0:09:04]} Nd7 {[%emt 0:01:03]} 23. Rac1 {[%emt 0:04:12]} Nc5 {[%emt 0:00:51]} 24. Qc4 {[%emt 0:02:27]} Qd7 {[%emt 0:06:04]} 25. Bd4 {[%emt 0:14:21]} Qxh3 {[%emt 0:00:39]} 26. Bxg7+ {[%emt 0:00:58]} Kxg7 {[%emt 0:01:32]} 27. Qd4+ {[%emt 0:00:23]} Kg8 {[%emt 0:00:42]} 28. Qe3 {[%emt 0:06:15]} Nd3 {[%emt 0:05:03]} 29. Qxh3 {[%emt 0:01:03]} Bxh3 {[%emt 0:00:53]} 30. Re3 {[%emt 0:01:51]} Nxc1 {[%emt 0:01:07]} 31. Rxh3 {[%emt 0:00:06]} Rbc8 {[%emt 0:02:04]} 32. Re3 {[%emt 0:02:08]} Nb3 {[%emt 0:01:38]} 33. e5 {[%emt 0:01:00]} Nd4 {[%emt 0:00:26]} 34. Ne4 {[%emt 0:00:46]} dxe5 {[%emt 0:06:33]} 35. Nf6+ {[%emt 0:01:20]} Kf8 {[%emt 0:00:05]} 36. Nxe8 {[%emt 0:03:27]} Rxe8 {[%emt 0:00:31]} 37. fxe5 {[%emt 0:00:09]} Rxe5 {[%emt 0:00:10]} 38. Rxe5 {[%emt 0:01:46]} Nf3+ {[%emt 0:00:07]} 39. Kg2 {[%emt 0:00:13]} Nxe5 {[%emt 0:00:07]} 40. Nc2 {[%emt 0:01:22]} Nc4 {[%emt 0:01:11]} 41. b3 {[%emt 0:01:09]} Nd2 {[%emt 0:00:02]} 42. Nd4 {[%emt 0:01:05]} Ne4 {[%emt 0:00:20]} 43. Kf3 {[%emt 0:00:25]} Nxg5+ {[%emt 0:00:35]} 44. Kf4 {[%emt 0:00:09]} f6 {[%emt 0:00:18]} 45. b4 {[%emt 0:00:10]} Ke7 {[%emt 0:00:19]} 46. Nb3 {[%emt 0:01:57]} b6 {[%emt 0:02:22]} 47. a5 {[%emt 0:00:09]} bxa5 {[%emt 0:00:10]} 48. Nxa5 {[%emt 0:01:39]} Kd6 {[%emt 0:00:18]} 49. Nc6 {[%emt 0:00:21]} Kxd5 {[%emt 0:01:44]} 50. Nb8 {[%emt 0:00:04]} Ne6+ {[%emt 0:00:14]} 51. Kg3 {[%emt 0:00:24]} Nc7 {[%emt 0:00:11]} 52. Nd7 {[%emt 0:00:09]} f5 {[%emt 0:01:07]} 53. Kf4 {[%emt 0:00:36]} Ne6+ {[%emt 0:00:37]} 54. Kf3 {[%emt 0:00:12]} h4 {[%emt 0:00:34]} 0-1